bitfinex/quotes_SOLUSD_20250207
["timestamp","ask_amount","ask_price","bid_price","bid_amount"]
[1738889546411,0.12549,189.92,189.85,26.53374303]
[1738889546723,26.53374303,189.91,189.85,26.53374303]
[1738889546920,26.53374303,189.93,189.85,26.53374303]
[1738889547515,27.06024303,189.93,189.85,26.53374303]
[1738889548529,26.53374303,189.97,189.89,26.53374303]
[1738889548708,0.5264,189.97,189.85,5.2672]
[1738889549029,27.06014303,189.97,189.9,26.53374303]
[1738889549426,27.06014303,189.97,189.88,26.53374303]
[1738889549818,27.06004303,189.99,189.91,26.53374303]
[1738889550016,0.5261,190.05,189.98,26.53374303]
[1738889550209,90.75312335,190.08,189.99,26.53374303]
[1738889550210,0.5261,190.07,189.99,26.53374303]
[1738889550614,0.5261,190.07,189.84,1.638]
[1738889550615,20.0,189.96,189.84,1.638]
[1738889550933,20.0,189.96,189.86,26.53374303]
[1738889551131,26.53374303,189.92,189.84,1.638]
[1738889551329,26.53374303,189.9,189.82,26.53374303]
[1738889551913,0.5266,189.89,189.82,26.53374303]
[1738889552829,46.53374303,189.92,189.82,31.80174303]
[1738889554017,0.5265,189.91,189.82,31.80174303]
[1738889554217,26.53374303,189.94,189.86,26.53374303]
[1738889554626,20.0,189.91,189.86,38.97663539]
[1738889555729,0.5265,189.93,189.86,38.97663539]
[1738889556635,0.5265,189.93,189.84,5.2675]
[1738889556636,38.97663539,189.92,189.84,38.97663539]
[1738889557438,39.50313539,189.92,189.84,38.97663539]
[1738889558934,38.97663539,189.9,189.82,39.00663539]
[1738889561242,0.5266,189.89,189.82,39.00663539]
[1738889561434,0.5266,189.89,189.82,13.37331641]
[1738889562744,0.5266,189.89,189.84,38.97663539]
[1738889563243,0.5264,189.95,189.88,38.97663539]
[1738889565940,38.97663539,189.94,189.86,38.97663539]
[1738889566132,38.97663539,189.93,189.85,38.97663539]
[1738889566662,0.5265,189.92,189.85,38.97663539]
[1738889566834,38.97663539,189.91,189.83,38.97663539]
[1738889567218,38.97663539,189.89,189.83,38.97663539]
[1738889567637,38.97663539,189.89,189.81,38.97663539]
[1738889568030,38.97663539,189.89,189.82,0.03]
[1738889568666,1.51423969,189.88,189.82,0.03]
[1738889568950,38.97663539,189.85,189.82,0.03]
[1738889570824,0.5267,189.84,189.82,0.03]
[1738889571744,20.0,189.83,189.82,0.03]
[1738889572338,20.5267,189.83,189.82,0.03]
[1738889573054,59.50333539,189.83,189.82,0.03]
[1738889574125,62.1847535,189.83,189.73,38.97663539]
[1738889574351,62.1847535,189.83,189.67,5.2721]
[1738889574352,38.97663539,189.77,189.69,38.97663539]
[1738889575865,38.97663539,189.75,189.67,38.97663539]
[1738889576863,24.03614656,189.74,189.66,25.61334656]
[1738889577251,0.527,189.73,189.66,24.03614656]
[1738889577447,24.03614656,189.72,189.64,24.03614656]
[1738889578246,24.03614656,189.72,189.62,5.2737]
[1738889578247,24.03614656,189.7,189.62,24.03614656]
[1738889578859,24.03614656,189.7,189.61,5.2739]
[1738889578860,24.03614656,189.72,189.64,24.03614656]
[1738889579036,0.527,189.73,189.66,24.03614656]
[1738889579576,24.03614656,189.76,189.68,24.03614656]
[1738889579779,8.96397203,189.8,189.7,24.03614656]
[1738889579780,24.03614656,189.78,189.7,24.03614656]
[1738889580476,24.03614656,189.78,189.7,5.70921895]
[1738889580770,20.0,189.77,189.7,24.03614656]
[1738889581339,24.03614656,189.78,189.72,24.03614656]
[1738889581543,30.39124656,189.8,189.73,24.03614656]
[1738889581753,6.3551,189.8,189.73,24.03614656]
[1738889581948,24.56284656,189.83,189.76,24.03614656]
[1738889582155,24.03614656,189.84,189.77,24.03614656]
[1738889582365,24.03614656,189.81,189.74,24.03614656]
[1738889582566,24.03614656,189.81,189.75,5.27]
[1738889582762,24.03614656,189.82,189.75,5.27]
[1738889582964,24.03614656,189.82,189.75,29.30614656]
[1738889584868,24.03614656,189.83,189.75,29.30614656]
[1738889585049,24.03614656,189.86,189.75,6.27]
[1738889585249,24.03614656,189.88,189.81,24.03614656]
[1738889585445,24.09914656,189.89,189.82,24.03614656]
[1738889585650,0.063,189.89,189.84,24.03614656]
[1738889586164,0.063,189.89,189.81,1.5158]
[1738889586345,0.063,189.89,189.85,24.03614656]
[1738889586549,0.063,189.89,189.81,1.5158]
[1738889586550,24.03614656,189.87,189.81,1.5158]
[1738889586744,24.03614656,189.86,189.81,1.5158]
[1738889587871,0.063,189.89,189.81,25.55194656]
[1738889588050,0.063,189.89,189.84,24.03614656]
[1738889589072,0.063,189.89,189.85,5.2673]
[1738889589379,0.063,189.89,189.85,29.30344656]
[1738889590449,0.063,189.89,189.87,24.03614656]
[1738889590648,0.063,189.89,189.88,24.03614656]
[1738889590863,0.063,189.89,189.88,39.82446509]
[1738889590864,0.0001,189.89,189.88,39.82446509]
[1738889591048,0.0001,189.89,189.88,69.12701165]
[1738889591253,0.0001,189.89,189.88,29.42803656]
[1738889591975,0.0001,189.89,189.88,29.30254656]
[1738889593475,0.0001,189.89,189.86,24.03614656]
[1738889593660,0.0001,189.89,189.86,29.30314656]
[1738889594171,0.063,189.95,189.86,29.30314656]
[1738889594172,0.063,189.95,189.88,24.03614656]
[1738889594958,24.03614656,189.94,189.86,29.30314656]
[1738889596177,24.03614656,189.94,189.86,24.03614656]
[1738889596363,24.03614656,189.92,189.84,24.03614656]
[1738889597358,24.03614656,189.92,189.84,29.30354656]
[1738889597762,6.3818,189.95,189.89,24.03614656]
[1738889597763,0.063,189.95,189.89,24.03614656]
[1738889597962,0.063,189.95,189.91,24.03614656]
[1738889598158,0.063,189.95,189.93,24.03614656]
[1738889600384,0.063,189.95,189.92,5.2653]
[1738889601185,0.063,189.95,189.93,24.03614656]
[1738889601677,0.063,189.95,189.94,24.03614656]
[1738889603083,0.063,189.95,189.94,29.30094656]
[1738889604981,0.063,189.95,189.94,29.42643656]
[1738889605185,24.03614656,190.06,189.95,1.12549]
[1738889605389,24.09914656,190.08,190.01,24.03614656]
[1738889605566,0.063,190.08,190.05,24.03614656]
[1738889605884,0.063,190.08,190.06,24.03614656]
[1738889606088,0.063,190.08,190.04,24.03614656]
[1738889607663,24.09914656,190.08,190.01,24.03614656]
[1738889607980,24.09914656,190.08,189.98,24.03614656]
[1738889607981,24.03614656,190.06,189.98,24.03614656]
[1738889608171,24.03614656,190.06,189.97,5.2639]
[1738889608172,24.03614656,190.06,189.99,24.03614656]
[1738889608378,24.03614656,190.07,189.99,24.03614656]
[1738889608988,24.56224656,190.07,189.99,29.29954656]
[1738889610763,3.12034067,190.06,189.99,29.29954656]
[1738889611272,24.03614656,190.04,189.96,24.03614656]
[1738889612187,24.03614656,190.04,189.96,29.30014656]
[1738889612188,3.12034067,190.03,189.96,29.30014656]
[1738889612369,3.12034067,190.03,189.98,24.03614656]
[1738889612683,3.12034067,190.03,190.02,24.03614656]
[1738889613281,4.067e-05,190.03,190.02,27.94871656]
[1738889613481,0.063,190.08,190.02,27.94871656]
[1738889613482,0.063,190.08,190.05,14.78831853]
[1738889613687,0.063,190.08,190.07,24.03614656]
[1738889614474,0.063,190.08,190.07,29.29734656]
[1738889615689,0.063,190.08,190.07,29.42283656]
[1738889615899,0.063,190.08,190.07,69.12181165]
[1738889616072,0.063,190.08,190.07,67.12181165]
[1738889616272,0.063,190.08,190.07,43.08566509]
[1738889617365,0.063,190.14,190.08,0.12549]
[1738889617571,0.063,190.14,190.12,24.03614656]
[1738889618490,0.063,190.14,190.11,24.03614656]
[1738889618682,0.063,190.14,190.1,24.03614656]
[1738889620309,0.063,190.14,190.09,5.2606]
[1738889620310,0.063,190.14,190.09,24.03614656]
[1738889620475,24.03614656,190.11,190.02,24.03614656]
[1738889620797,24.03614656,190.07,189.98,24.03614656]
[1738889620980,24.03614656,190.05,189.98,24.03614656]
[1738889622296,24.56234656,190.05,189.98,24.03614656]
[1738889622684,24.56224656,190.07,189.98,24.03614656]
[1738889622895,31.01084656,190.09,190.02,24.03614656]
[1738889623497,31.01084656,190.09,190.0,24.03614656]
[1738889623673,24.03614656,190.07,190.0,24.03614656]
[1738889624073,6.9747,190.09,190.0,24.03614656]
[1738889624074,31.01084656,190.09,190.0,24.03614656]
[1738889624381,31.01084656,190.09,190.02,24.03614656]
[1738889626378,24.56214656,190.09,190.02,24.03614656]
[1738889626596,0.526,190.09,190.02,24.03614656]
[1738889628419,24.03614656,190.11,190.02,24.03614656]
[1738889628420,0.526,190.1,190.02,24.03614656]
[1738889628918,24.03614656,190.07,190.0,24.03614656]
[1738889629604,24.03614656,190.07,189.98,24.03614656]
[1738889630029,24.03614656,190.05,189.98,24.03614656]
[1738889630205,0.5262,190.04,189.98,24.03614656]
[1738889630391,0.5262,190.04,190.02,0.03]
[1738889632021,50.56884656,190.03,190.02,0.03]
[1738889633536,51.09504656,190.03,190.02,0.03]
[1738889634210,54.18762023,190.03,190.02,0.03]
[1738889639419,3.09257367,190.03,190.02,0.03]
[1738889642305,20.0,189.99,189.91,24.03614656]
[1738889642532,20.0,189.99,189.85,25.56794656]
[1738889642533,24.03614656,189.95,189.85,25.56794656]
[1738889642735,24.03614656,189.93,189.85,25.56794656]
[1738889643410,0.5265,189.92,189.85,1.5318]
[1738889643611,24.03614656,189.95,189.85,30.83524656]
[1738889643817,24.03614656,189.95,189.87,24.03614656]
[1738889644017,24.03614656,189.97,189.89,24.03614656]
[1738889644212,24.03614656,189.99,189.89,24.03614656]
[1738889644930,24.03614656,189.99,189.91,24.03614656]
[1738889645534,24.03614656,189.99,189.91,29.30164656]
[1738889645827,24.56244656,189.99,189.91,29.30164656]
[1738889648132,24.03614656,189.99,189.91,29.30164656]
[1738889648312,0.5262,190.03,189.96,24.03614656]
[1738889648507,24.03614656,190.04,189.98,24.03614656]
[1738889648726,0.5262,190.05,189.98,24.03614656]
[1738889648908,24.56234656,190.05,189.98,24.03614656]
[1738889650620,24.56234656,190.05,189.96,29.30014656]
[1738889652131,44.03614656,190.07,190.0,24.03614656]
[1738889652814,24.03614656,190.05,189.96,29.30014656]
[1738889653944,0.5261,190.05,189.98,24.03614656]
[1738889654623,24.56224656,190.05,189.98,24.03614656]
[1738889655033,24.62524656,190.05,189.98,24.03614656]
[1738889655642,24.03614656,190.03,189.94,24.03614656]
[1738889656144,24.03614656,190.01,189.92,31.68134656]
[1738889656353,24.03614656,190.01,189.92,25.64114656]
[1738889657426,0.5263,190.0,189.92,25.64114656]
[1738889659360,24.03614656,189.97,189.88,24.03614656]
[1738889659661,24.03614656,189.93,189.86,24.03614656]
[1738889659959,24.03614656,189.93,189.85,0.03]
[1738889660121,24.03614656,189.91,189.85,0.03]
[1738889661318,0.98747755,189.96,189.85,0.03]
[1738889661319,24.03614656,189.93,189.85,0.03]
[1738889664435,24.56264656,189.93,189.85,0.03]
[1738889666526,24.03614656,189.91,189.85,0.03]
[1738889666826,1.28572504,189.98,189.86,24.03614656]
[1738889666827,24.03614656,189.93,189.86,24.03614656]
[1738889667030,24.03614656,189.98,189.9,24.03614656]
[1738889667225,24.56244656,190.0,189.92,24.03614656]
[1738889667532,24.09914656,190.02,189.94,24.03614656]
[1738889667729,24.62534656,190.02,189.94,24.03614656]
[1738889668324,24.03614656,190.0,189.94,24.03614656]
[1738889669247,24.56244656,190.0,189.94,24.03614656]
[1738889669749,24.56244656,190.0,189.92,24.03614656]
[1738889670336,24.03614656,189.98,189.92,24.03614656]
[1738889670849,24.56244656,189.98,189.92,24.03614656]
[1738889671030,24.56244656,189.98,189.91,1.5198]
[1738889671228,20.0,189.95,189.9,24.03614656]
[1738889671446,24.03614656,189.96,189.88,24.03614656]
[1738889672028,24.03614656,189.98,189.92,24.03614656]
[1738889672224,0.063,190.02,189.97,24.03614656]
[1738889672521,0.063,190.02,190.01,24.03614656]
[1738889672837,0.063,190.02,190.01,29.29894656]
[1738889673248,0.063,190.02,190.01,24.03614656]
[1738889675252,0.063,190.02,190.01,29.29894656]
[1738889675839,0.063,190.09,190.01,29.67541656]
[1738889676029,0.063,190.09,190.04,37.82446509]
[1738889676246,0.063,190.09,190.04,38.82446509]
[1738889677153,0.063,190.09,190.04,44.08646509]
[1738889677955,0.0001,190.05,190.04,45.21195509]
[1738889678163,0.063,190.09,190.06,13.78831853]
[1738889678449,0.063,190.09,190.08,24.03614656]
[1738889679031,0.063,190.09,190.08,29.29704656]
[1738889679432,0.063,190.09,190.08,24.03614656]
[1738889679638,0.063,190.09,190.06,24.03614656]
[1738889679837,0.063,190.09,190.04,24.03614656]
[1738889681546,0.063,190.09,190.02,24.03614656]
[1738889683236,0.063,190.09,190.04,24.03614656]
[1738889683649,0.063,190.09,190.06,24.03614656]
[1738889685553,0.063,190.09,190.08,24.03614656]
[1738889687147,0.063,190.09,190.08,29.29704656]
[1738889687953,0.0001,190.09,190.08,73.50151165]
[1738889688164,0.0001,190.09,190.08,79.86841165]
[1738889688655,0.0001,190.09,190.08,78.86841165]
[1738889688959,0.0001,190.09,190.08,77.86841165]
[1738889691656,0.0001,190.09,190.08,77.89841165]
[1738889692047,0.063,190.14,190.08,64.11009312]
[1738889692253,0.063,190.14,190.12,24.03614656]
[1738889692543,0.063,190.14,190.08,9.6709]
[1738889692544,0.063,190.14,190.1,24.03614656]
[1738889692735,0.063,190.14,190.08,24.06614656]
[1738889693146,0.063,190.14,190.08,29.32704656]
[1738889693349,0.063,190.14,190.1,24.03614656]
[1738889694054,0.063,190.14,190.08,24.06614656]
[1738889697166,0.063,190.14,190.12,24.03614656]
[1738889698544,0.063,190.14,190.13,24.03614656]
[1738889698757,0.063,190.14,190.13,29.29564656]
[1738889698967,0.063,190.14,190.13,43.08396509]
[1738889700346,0.063,190.22,190.17,1.37647]
[1738889700540,0.063,190.22,190.21,24.03614656]
[1738889700946,0.063,190.22,190.21,29.29344656]
[1738889702566,0.063,190.22,190.21,44.64236509]
[1738889703142,0.063,190.22,190.21,24.03614656]
[1738889705069,0.063,190.22,190.21,29.29344656]
[1738889705464,0.063,190.29,190.21,29.29344656]
[1738889705660,0.063,190.29,190.23,24.03614656]
[1738889705843,0.063,190.29,190.25,24.03614656]
[1738889706048,24.09914656,190.29,190.22,24.03614656]
[1738889706352,24.03614656,190.27,190.2,24.03614656]
[1738889706746,24.03614656,190.27,190.18,24.03614656]
[1738889706950,24.03614656,190.25,190.18,24.03614656]
[1738889707651,31.84114656,190.27,190.2,24.03614656]
[1738889709175,31.84114656,190.27,190.2,29.29374656]
[1738889710071,82.163,190.28,190.22,24.03614656]
[1738889711469,82.163,190.28,190.17,0.12549]
[1738889711647,24.03614656,190.25,190.18,24.03614656]
[1738889711847,24.03614656,190.25,190.16,29.29454656]
[1738889712068,24.03614656,190.25,190.18,24.03614656]
[1738889712264,24.03614656,190.25,190.16,24.03614656]
[1738889712453,0.5256,190.24,190.16,24.03614656]
[1738889713159,24.03614656,190.23,190.16,24.03614656]
[1738889713472,24.03614656,190.27,190.18,24.03614656]
[1738889714074,20.0,190.24,190.18,24.03614656]
[1738889714575,20.0,190.24,190.19,5.2578]
[1738889714977,24.03614656,190.27,190.18,24.03614656]
[1738889715150,44.03614656,190.25,190.16,5.2587]
[1738889715355,20.0,190.24,190.16,29.29484656]
[1738889716173,44.03614656,190.25,190.16,29.29484656]
[1738889716387,44.56174656,190.25,190.16,29.29484656]
[1738889717258,24.03614656,190.21,190.14,24.06614656]
[1738889717857,24.03614656,190.19,190.14,0.03]
[1738889718379,24.56194656,190.19,190.14,0.03]
[1738889718678,3.0976201,190.18,190.14,0.03]
[1738889719373,3.6234201,190.18,190.14,0.03]
[1738889719985,3.0976201,190.18,190.14,0.03]
[1738889720279,3.0976201,190.18,190.14,24.06614656]
[1738889721594,3.0976201,190.18,190.15,5.259]
[1738889721884,3.0976201,190.21,190.15,5.259]
[1738889722264,3.0976201,190.21,190.14,24.06614656]
[1738889722471,27.65946666,190.21,190.14,0.03]
[1738889723067,27.65946666,190.21,190.14,24.06614656]
[1738889723283,0.5257,190.21,190.14,24.06614656]
[1738889723483,20.0,190.22,190.14,29.32534656]
[1738889724265,24.56174656,190.23,190.16,24.03614656]
[1738889724776,20.0,190.22,190.16,24.03614656]
[1738889725474,20.0,190.22,190.17,5.2584]
[1738889728071,24.03614656,190.2,190.14,0.03]
[1738889728272,24.03614656,190.19,190.14,0.03]
[1738889728693,16.61503031,190.17,190.14,0.03]
[1738889729189,16.61503031,190.19,190.14,0.03]
[1738889730073,0.5258,190.18,190.14,0.03]
[1738889730699,27.10862353,190.18,190.14,0.03]
[1738889731071,26.58282353,190.2,190.14,0.03]
[1738889731266,26.64582353,190.22,190.16,26.58282353]
[1738889731471,0.063,190.22,190.16,26.58282353]
[1738889731770,20.0,190.21,190.16,26.58282353]
[1738889733697,0.063,190.22,190.16,31.84142353]
[1738889736480,18.44057719,190.24,190.16,31.84142353]
[1738889736874,0.98576581,190.26,190.14,26.61282353]
[1738889737098,26.58282353,190.2,190.14,0.03]
[1738889737780,26.58282353,190.16,190.14,0.03]
[1738889738381,26.58282353,190.18,190.14,0.03]
[1738889738982,0.5258,190.17,190.14,0.03]
[1738889739281,26.58282353,190.16,190.14,0.03]
[1738889740197,3.10477368,190.15,190.14,0.03]
[1738889741401,3.63067368,190.15,190.14,0.03]
[1738889743086,3.63067368,190.15,190.08,0.03]
[1738889743395,26.58282353,190.1,190.08,0.03]
[1738889744406,26.58282353,190.12,190.08,0.03]
[1738889744619,3.10477368,190.09,190.08,0.03]
[1738889744906,3.10477368,190.09,190.08,26.61282353]
[1738889745899,3.10477368,190.09,190.08,31.87372353]
[1738889746300,27.10862353,190.16,190.08,31.87372353]
[1738889746301,3.10477368,190.15,190.08,31.87372353]
[1738889746514,3.63067368,190.15,190.08,26.61282353]
[1738889747187,0.5259,190.15,190.08,26.61282353]
[1738889748385,26.58282353,190.14,190.08,0.03]
[1738889748689,26.58282353,190.12,190.08,0.03]
[1738889749889,20.0,190.11,190.08,0.03]
[1738889750096,23.09916819,190.11,190.08,0.03]
[1738889751110,20.0,190.11,190.08,0.03]
[1738889751309,26.58282353,190.14,190.08,0.03]
[1738889751606,20.0,190.13,190.08,26.61282353]
[1738889751907,20.0,190.13,190.08,0.03]
[1738889752613,17.14576381,190.14,190.08,0.03]
[1738889753304,16.61986381,190.12,190.08,0.03]
[1738889754091,16.61986381,190.1,190.08,0.03]
[1738889754414,0.9866161,190.09,190.08,0.03]
[1738889754619,14.92446463,190.09,190.08,0.0001]
[1738889755788,18.01981085,190.09,190.08,0.0001]
[1738889756199,3.62134622,190.09,190.08,0.0001]
[1738889758198,3.09534622,190.09,190.08,0.0001]
[1738889759817,17.20876381,190.15,190.08,0.0001]
[1738889760427,16.61986381,190.14,190.08,0.0001]
[1738889760795,16.61986381,190.13,190.08,0.0001]
[1738889761428,16.61986381,190.12,190.08,0.0001]
[1738889761912,17.14576381,190.13,190.08,0.0001]
[1738889762131,0.063,190.15,190.1,16.61986381]
[1738889762295,0.063,190.15,190.11,16.61986381]
[1738889762916,0.063,190.15,190.1,16.61986381]
[1738889763118,0.063,190.15,190.09,16.61986381]
[1738889765919,16.68286381,190.15,190.08,5.2607]
[1738889766436,0.063,190.15,190.09,22.25683381]
[1738889767611,0.063,190.15,190.14,16.61986381]
[1738889768604,0.063,190.15,190.14,21.87906381]
[1738889769401,0.063,190.15,190.14,35.66738234]
[1738889769905,0.063,190.15,190.14,43.55968234]
[1738889774623,0.063,190.15,190.14,29.77136381]
[1738889774943,0.063,190.15,190.14,6.8931]
[1738889775440,0.063,190.15,190.14,23.88943381]
[1738889775609,0.063,190.15,190.14,37.30128234]
[1738889776008,0.063,190.15,190.14,23.88943381]
[1738889776304,0.063,190.15,190.14,37.30128234]
[1738889777752,0.063,190.15,190.14,23.88943381]
[1738889778448,0.063,190.15,190.14,23.51296381]
[1738889779457,0.063,190.15,190.1,21.88016381]
[1738889782439,0.063,190.15,190.14,16.61986381]
[1738889783536,0.063,190.15,190.11,21.87976381]
[1738889784436,16.68286381,190.15,190.08,16.61996381]
[1738889784834,16.68286381,190.15,190.08,0.0001]
[1738889785134,16.61986381,190.13,190.08,0.0001]
[1738889785838,17.14576381,190.13,190.08,0.0001]
[1738889786038,16.61986381,190.11,190.08,0.0001]
[1738889786526,16.61986381,190.1,190.08,0.0001]
[1738889787129,16.61986381,190.13,190.08,0.0001]
[1738889788443,17.14576381,190.13,190.08,0.0001]
[1738889788636,16.61986381,190.11,190.08,0.0001]
[1738889789625,17.14586381,190.11,190.08,0.0001]
[1738889791344,16.61986381,190.11,190.08,0.0001]
[1738889792830,17.14586381,190.11,190.08,0.0001]
[1738889793028,16.61986381,190.09,190.08,0.0001]
[1738889794150,17.14586381,190.09,190.08,0.0001]
[1738889794522,16.61986381,190.09,190.08,0.0001]
[1738889794853,16.61986381,190.11,190.08,0.0001]
[1738889797242,98.71986381,190.13,190.08,0.0001]
[1738889797732,99.24576381,190.13,190.08,0.0001]
[1738889799053,82.1,190.13,190.08,0.0001]
[1738889799253,0.063,190.15,190.12,16.61986381]
[1738889799630,0.063,190.15,190.13,16.61986381]
[1738889799837,0.063,190.15,190.12,16.61986381]
[1738889802461,0.063,190.15,190.12,21.87956381]
[1738889803468,0.063,190.15,190.14,16.61986381]
[1738889804462,0.063,190.15,190.14,30.40818234]
[1738889805162,0.063,190.24,190.17,0.37647]
[1738889805355,0.063,190.24,190.19,16.61986381]
[1738889805670,0.063,190.24,190.22,16.61986381]
[1738889806154,0.063,190.24,190.2,16.99633381]
[1738889806480,0.063,190.24,190.19,16.61986381]
[1738889806758,16.68286381,190.24,190.17,22.65526381]
[1738889807071,16.68286381,190.24,190.17,21.87806381]
[1738889807968,0.063,190.24,190.19,16.61986381]
[1738889808743,0.063,190.24,190.18,16.61986381]
[1738889808975,16.61986381,190.23,190.16,16.61986381]
[1738889809148,17.14546381,190.23,190.16,16.61986381]
[1738889809643,17.14546381,190.23,190.15,23.47956381]
[1738889810870,16.61986381,190.22,190.15,23.47956381]
[1738889812156,16.61986381,190.23,190.15,23.47956381]
[1738889812869,0.063,190.24,190.22,16.61986381]
[1738889813053,0.063,190.24,190.23,16.61986381]
[1738889814151,0.063,190.24,190.23,21.87656381]
[1738889816176,0.063,190.24,190.23,22.25303381]
[1738889819555,0.063,190.24,190.23,35.66488234]
[1738889821065,0.063,190.24,190.23,21.87656381]
[1738889822970,0.063,190.24,190.23,35.79037234]
[1738889822971,0.0001,190.24,190.23,35.79037234]
[1738889823174,0.063,190.27,190.26,0.37647]
[1738889823480,0.063,190.27,190.26,16.99633381]
[1738889824465,0.063,190.27,190.26,22.25223381]
[1738889824872,0.063,190.31,190.26,22.25223381]
[1738889825071,0.063,190.31,190.28,16.61986381]
[1738889825887,0.063,190.31,190.29,16.61986381]
[1738889826196,0.063,190.31,190.3,30.40818234]
[1738889826359,0.063,190.31,190.3,35.66298234]
[1738889826668,0.063,190.31,190.3,35.78847234]
[1738889826865,0.063,190.31,190.29,16.61986381]
[1738889828069,0.063,190.35,190.29,21.87466381]
[1738889828271,0.063,190.35,190.3,16.61986381]
[1738889829270,0.063,190.35,190.31,16.61986381]
[1738889829475,0.063,190.35,190.32,16.61986381]
[1738889829982,0.063,190.35,190.33,16.61986381]
[1738889830200,0.063,190.35,190.34,22.12454381]
[1738889830771,0.063,190.35,190.3,16.61986381]
[1738889830975,16.61986381,190.34,190.27,16.61986381]
[1738889831178,16.61986381,190.34,190.26,21.87576381]
[1738889831374,16.61986381,190.33,190.26,21.87576381]
[1738889831577,16.61986381,190.34,190.27,0.25098]
[1738889831763,16.61986381,190.34,190.27,16.87084381]
[1738889832162,16.61986381,190.34,190.27,21.87536381]
[1738889833371,0.063,190.35,190.29,16.61986381]
[1738889834269,0.063,190.35,190.3,5.2548]
[1738889835992,0.063,190.35,190.29,16.61986381]
[1738889836294,0.063,190.35,190.29,21.87496381]
[1738889836485,0.063,190.35,190.25,21.87606381]
[1738889836486,16.61986381,190.32,190.25,21.87606381]
[1738889838205,16.61986381,190.32,190.25,16.61986381]
[1738889838373,16.61986381,190.3,190.23,21.90636381]
[1738889839087,98.71986381,190.32,190.23,21.90636381]
[1738889839491,16.61986381,190.34,190.27,5.2556]
[1738889839670,0.063,190.35,190.27,21.87546381]
[1738889840201,20.0,190.33,190.27,21.87546381]
[1738889840592,16.61986381,190.32,190.24,16.61986381]
[1738889840974,16.61986381,190.32,190.24,21.87626381]
[1738889841369,36.61986381,190.34,190.26,16.61986381]
[1738889841595,36.61986381,190.34,190.27,5.2556]
[1738889842475,16.61986381,190.34,190.27,5.2556]
[1738889842993,16.61986381,190.32,190.25,5.50688]
[1738889843802,17.14526381,190.32,190.24,21.87626381]
[1738889844021,17.14526381,190.32,190.23,0.03]
[1738889844022,16.61986381,190.3,190.23,0.03]
[1738889845205,0.5255,190.29,190.23,0.03]
[1738889848296,16.61986381,190.26,190.23,0.03]
[1738889848497,16.61986381,190.24,190.23,0.03]
[1738889849209,16.61986381,190.26,190.23,0.03]
[1738889850415,16.61986381,190.24,190.23,0.03]
[1738889851503,19.71022311,190.24,190.23,0.03]
[1738889852837,3.0903593,190.24,190.23,0.03]
[1738889853411,16.61986381,190.27,190.23,0.03]
[1738889854001,16.61986381,190.29,190.23,0.03]
[1738889854203,16.68286381,190.32,190.25,16.61986381]
[1738889854405,0.5254,190.31,190.23,0.03]
[1738889854720,21.51083456,190.31,190.23,0.03]
[1738889855114,22.82443456,190.31,190.23,0.03]
[1738889855339,16.61986381,190.25,190.23,0.03]
[1738889855508,16.61986381,190.27,190.23,0.03]
[1738889855919,19.7097242,190.3,190.23,0.03]
[1738889856231,19.7097242,190.3,190.23,5.2867]
[1738889856812,101.8097242,190.3,190.23,5.2867]
[1738889857323,3.08986039,190.29,190.24,16.61986381]
[1738889857533,3.08986039,190.29,190.26,16.61986381]
[1738889858207,6.039e-05,190.29,190.28,30.53367234]
[1738889858406,6.039e-05,190.29,190.28,31.53367234]
[1738889858607,6.039e-05,190.29,190.28,32.53367234]
[1738889859058,0.063,190.32,190.31,0.25098]
[1738889859208,0.063,190.32,190.31,22.12534381]
[1738889859702,0.063,190.32,190.31,35.78817234]
[1738889860024,0.063,190.32,190.31,35.66268234]
[1738889860729,0.063,190.32,190.31,32.02408947]
[1738889861113,0.063,190.32,190.31,45.561428]
[1738889861727,0.063,190.32,190.31,45.686918]
[1738889861921,0.063,190.35,190.34,0.12549]
[1738889862125,0.063,190.35,190.34,40.055948]
[1738889862930,0.063,190.35,190.34,45.560628]
[1738889865335,0.063,190.35,190.34,47.107628]
[1738889866239,0.063,190.35,190.34,31.77230947]
[1738889866735,0.063,190.35,190.34,32.02328947]